Cogmind - Beta 13 @@@ ROGUE MODE // 2024.04.07 @ 18:50:44 Player: BoomBlip Result: Destroyed by D-53 Grenadier with Mini Grenade Launcher Performance ------------- Evolutions (0) 0 Regions Visited (2) 400 Robots Destroyed (5) 25 Value Destroyed (111) 111 Prototype IDs (0) 0 Alien Tech Used (0) 0 Bonus (0) 0 TOTAL SCORE: 536 Bonus ------- None Cogmind --------- Core Integrity 0/250 Matter 284/300 Energy 81/100 System Corruption 0% Temperature Cool (0) Movement Core (50) Location -10/Mines Parts ------- > --- POWER (1) -------- (None) > --- PROPULSION (2) --- (None) > --- UTILITY (2) ------ (None) > --- WEAPON (2) ------- (None) > --- INVENTORY (5) ---- Ion Engine Aluminum Leg Wheel Large Storage Unit Light Assault Rifle Peak State ------------ > --- POWER ------------ Ion Engine > --- PROPULSION ------- Wheel Compact Wheel > --- UTILITY ---------- Large Storage Unit High-capacity Storage Unit > --- WEAPON ----------- Beam Rifle Assault Rifle > --- INVENTORY -------- Ion Engine Ion Engine Light Nuclear Core Aluminum Leg Aluminum Leg Aluminum Leg Wheel Small Storage Unit Large Storage Unit Small Laser Beam Rifle Particle Gun Particle Gun Light Assault Rifle Light Assault Rifle [Rating: 10] Favorites ----------- Power Ion Engine Engine Ion Engine Power Core Light Nuclear Core Propulsion Compact Wheel Leg Aluminum Leg Wheel Compact Wheel Utility Large Storage Unit Storage Large Storage Unit Weapon Assault Rifle Energy Gun Beam Rifle Ballistic Gun Assault Rifle Build | -11 -10 -10 ------- Run | Yrd Mat Min Slots Evolved . | . . . Power . | . . . Propulsion . | . . . Utility . | . . . Weapon . | . . . Parts Attached 8 | . 5 3 Power 1 | . . 1 Engine . | . . . Core 1 | . . 1 Reactor . | . . . Propulsion 3 | . 2 1 Treads . | . . . Leg . | . . . Wheel 3 | . 2 1 Hover . | . . . Flight . | . . . Utility 2 | . 2 . Device . | . . . Storage 2 | . 2 . Processor . | . . . Hackware . | . . . Protection . | . . . Artifact . | . . . Weapon 2 | . 1 1 Energy Gun 2 | . 1 1 Energy Cannon . | . . . Ballistic Gun . | . . . Ballistic Cannon . | . . . Launcher . | . . . Special Weapon . | . . . Impact Weapon . | . . . Slashing Weapon . | . . . Piercing Weapon . | . . . Special Melee Weapon . | . . . Unidentified Prototypes . | . . . Parts Lost 5 | . . 5 Power 1 | . . 1 Propulsion 2 | . . 2 Utility . | . . . Weapon 2 | . . 2 Highest Loss Streak 4 | . . 4 To Critical Strikes . | . . . Average Slot Usage (%) 95 | . 100 91 Engine 13 | . 14 13 Leg 1 | . 4 . Wheel 21 | . 23 20 Storage 28 | . 28 28 Energy Gun 12 | . 9 14 Ballistic Gun 15 | . 18 14 Naked Turns 1 | . . 1 Heaviest Build 70 | 13 70 70 Greatest Support 26 | 20 26 26 Greatest Overweight (x) 4 | . 2 4 Average Overweight (x) 2 | . 1 2 Largest Inventory Capacity 20 | . 20 20 Average Capacity 19 | . 18 19 Most Carried 15 | . 10 15 Average Carried 11 | . 8 13 Final Capacity 20 | 8 20 5 Final Carried 10 | 6 10 5 Class Distribution -------------------- 100% | Mutant Dominant Class ---------------- Mutant | -10/Materials Mutant | -10/Mines Resources | -11 -10 -10 ----------- Run | Yrd Mat Min Matter Collected 284 | 200 . 84 Remotely . | . . . Salvage Created 144 | . . 144 Parts 10 | . . 10 Haulers Intercepted . | . . . Recyclers Shooed . | . . . Parts Field Recycled . | . . . Retrieved Matter . | . . . Parts Self-Destructed . | . . . Prevented . | . . . Kills | -11 -10 -10 ------- Run | Yrd Mat Min Combat Hostiles Destroyed 5 | . . 5 Guns 5 | . . 5 Classes Destroyed 2 | . . 2 Swarmer 3 | . . 3 Grunt 2 | . . 2 Best Kill Streak 3 | . . 3 Combat Bots Only 3 | . . 3 Max Kills in Single Turn 2 | . . 2 Gunslinging . | . . . Exploded . | . . . Melee . | . . . Uniques/NPCs Destroyed . | . . . Combat | -11 -10 -10 -------- Run | Yrd Mat Min Hostile Shots Fired 31 | . . 31 Missed 5 | . . 5 Damage Taken 694 | . . 694 Core 268 | . . 268 Absorbed by Shields . | . . . Core Remaining (%) 100 | 100 . . Volleys Fired 11 | . . 11 Largest 2 | . . 2 Hottest 76 | . . 76 Shots Fired 22 | . . 22 Gun 22 | . . 22 Cannon . | . . . Launcher . | . . . Special . | . . . Kinetic 11 | . . 11 Thermal 11 | . . 11 Explosive . | . . . Electromagnetic . | . . . Robot Hit Streak 5 | . . 5 Robot Miss Streak 5 | . . 5 Penetration Max . | . . . Secondary Targets 1 | . . 1 Max Gunslinging Chain 1 | . . 1 Shots Hit Robots 12 | . . 12 Core Hits 9 | . . 9 Critical Kills . | . . . Critical Parts Destroyed . | . . . Critical Strikes . | . . . Melee Attacks . | . . . Impact . | . . . Slashing . | . . . Piercing . | . . . Sneak Attacks . | . . . Combat Hostiles . | . . . Follow-up Attacks . | . . . Damage Inflicted 164 | . . 164 Guns 164 | . . 164 Cannons . | . . . Explosions . | . . . Melee . | . . . Ramming . | . . . Kinetic 91 | . . 91 Thermal 73 | . . 73 Explosive . | . . . Electromagnetic . | . . . Impact . | . . . Slashing . | . . . Piercing . | . . . Highest Corruption . | . . . Average Corruption . | . . . Corruption Purged . | . . . Corruption Blocked . | . . . Overload Shots . | . . . Overflow Damage . | . . . Projectiles . | . . . Explosions . | . . . Melee . | . . . Knockbacks . | . . . Impact . | . . . Kinetic . | . . . Secondary . | . . . Self-Inflicted Damage . | . . . Shots . | . . . Rammed . | . . . Targets Rammed . | . . . Kicked . | . . . Crushed . | . . . Highest Temperature 117 | . . 117 Average Temperature 41 | . . 41 Received Heat Transfer 42 | . . 42 Siege Activations . | . . . Robots Corrupted . | . . . Combat Hostiles . | . . . Parts Fried . | . . . Impact Corruptions . | . . . Robots Melted . | . . . Combat Hostiles . | . . . Parts Melted 1 | . . 1 Heat Transferred 185 | . . 185 Parts Sabotaged . | . . . Parts Stolen . | . . . Parts Stripped . | . . . Power Chain Reactions . | . . . Alert | -11 -10 -10 ------- Run | Yrd Mat Min Peak Influence 113 | . 9 113 Initial 3 | . . 3 Average 52 | . 3 90 Maximum Alert Level . | . . . Low Security (%) 100 | . 100 100 Level 1 . | . . . Level 2 . | . . . Level 3 . | . . . Level 4 . | . . . Level 5 . | . . . High Security . | . . . Max Security . | . . . Squads Dispatched . | . . . Investigation . | . . . Extermination . | . . . Reinforcement . | . . . Assault . | . . . Garrison . | . . . Intercept . | . . . Searches Triggered . | . . . Construction Impeded . | . . . Haulers Reinforced . | . . . Active Scanning Responses . | . . . Cargo Convoy Interrupts . | . . . Stealth | -11 -10 -10 --------- Run | Yrd Mat Min Distress Signals 1 | . . 1 Communications Jammed . | . . . Distress Signals . | . . . Times Spotted 7 | . . 7 Peak Tracking Total 3 | . . 3 Tactical Retreats . | . . . Traps | -11 -10 -10 ------- Run | Yrd Mat Min Traps Triggered . | . . . Indirectly . | . . . Trap Hack Attempts . | . . . Triggered . | . . . Disarmed . | . . . Reprogrammed . | . . . Reused . | . . . Traps Extracted . | . . . Installed . | . . . Triggered . | . . . Machines | -11 -10 -10 ---------- Run | Yrd Mat Min Machines Disabled . | . . . Max in Single Turn . | . . . Machines Repaired . | . . . Machines Dismantled . | . . . Machines Sabotaged . | . . . Overloaded Fab Kills . | . . . Hacking | -11 -10 -10 --------- Run | Yrd Mat Min Machines Accessed 2 | . 2 . Terminals 2 | . 2 . Fabricators . | . . . Repair Stations . | . . . Recycling Units . | . . . Scanalyzers . | . . . Garrison Access . | . . . Total Hacks 5 | . 5 . Successful 2 | . 2 . Failed 3 | . 3 . Catastrophic 1 | . 1 . Database Lockouts . | . . . Manual 5 | . 5 . Terminals 5 | . 5 . Fabricators . | . . . Repair Stations . | . . . Recycling Units . | . . . Scanalyzers . | . . . Garrison Access . | . . . Terminal Hacks . | . . . Fabricator Hacks . | . . . Repair Station Hacks . | . . . Recycling Unit Hacks . | . . . Scanalyzer . | . . . Garrison Access Hacks . | . . . Unauthorized Hacks 2 | . 2 . Terminals 2 | . 2 . Botnet 2 | . 2 . Fabricators . | . . . Repair Stations . | . . . Recycling Units . | . . . Scanalyzers . | . . . Garrison Access . | . . . Data Cores Recovered . | . . . Used . | . . . Hacking Detections 2 | . 2 . Full Trace Events . | . . . Feedback Events . | . . . Feedback Blocked . | . . . Robot Schematics Acquired . | . . . Robots Built . | . . . Authchips . | . . . Time . | . . . Total Robot Build Rating . | . . . Part Schematics Acquired . | . . . Parts Built . | . . . Authchips . | . . . Time . | . . . Total Part Build Rating . | . . . Parts Repaired . | . . . Time . | . . . Parts Recycled . | . . . Recycled Matter . | . . . Retrieved Matter . | . . . Retrieved Components . | . . . Parts Scanalyzed . | . . . Part Schematics Acquired . | . . . Parts Damaged . | . . . Bothacking | -11 -10 -10 ------------ Run | Yrd Mat Min Used RIF Installer . | . . . Robots Hacked . | . . . Non-combat . | . . . Combat . | . . . Robot Hacks Applied . | . . . Relay Couplers Released . | . . . Fabnet Peak Effective % . | . . . Robots Rewired . | . . . Allies Hacked . | . . . Hacks Repelled . | . . . Allies | -11 -10 -10 -------- Run | Yrd Mat Min Total Allies . | . . . Largest Group . | . . . Highest-Rated Group . | . . . Highest-Rated Ally . | . . . Total Orders . | . . . Ally Attacks . | . . . Total Damage . | . . . Kills . | . . . Allies Corrupted . | . . . Allies Melted . | . . . Intel | -11 -10 -10 ------- Run | Yrd Mat Min Robot Analysis Total . | . . . Derelict Logs Recovered . | . . . Drone Launches . | . . . Drone Recoveries . | . . . Exploration | -11 -10 -10 ------------- Run | Yrd Mat Min Turns Passed 307 | . 133 174 Spaces Moved 194 | 1 95 98 Core 3 | . . 3 Treads . | . . . Legs 14 | 1 13 . Wheels 177 | . 82 95 Hover . | . . . Flight . | . . . Fastest Speed 50 | 120 120 50 Average Speed 130 | 120 125 135 Slowest Speed 190 | 120 190 160 Overloaded Moves . | . . . Propulsion Burnouts . | . . . Robots Hopped . | . . . Cave-ins Triggered . | . . . Exploration Rate (%) 15 | 2 24 19 Regions Visited 2 Branch Regions 1 Pre-discovered Areas . | . . . Known Exits Taken . | . . . Unknown Exits Taken 2 | 1 1 . Scrap Searched . | . . . Spaces Dug . | . . . Terrain Destroyed . | . . . Melee . | . . . Projectile . | . . . AOE . | . . . Terrain Rammed . | . . . Walls Destroyed . | . . . Machines Disabled . | . . . Actions | -11 -10 -10 --------- Run | Yrd Mat Min Total 225 | . 108 117 Wait . | . . . Move 192 | . 94 98 Hop . | . . . Pick Up 10 | . 5 5 Fast Attach 3 | . 2 1 Attach 2 | . . 2 Detach 1 | . 1 . Swap 3 | . 3 . Drop 3 | . 3 . Fire 11 | . . 11 Melee . | . . . Ram . | . . . Kick . | . . . Crush . | . . . Escape Stasis . | . . . Rewire . | . . . Trap . | . . . Miscellaneous . | . . . Route ------- -11/Scrapyard -10/Materials -10/Mines History --------- Turn | Location | Event 1 | -11/Scrapyard | Discovered new exit (range 0) 1 | -11/Scrapyard | Entered Materials 127 | -10/Materials | Discovered new exit (range 6) 134 | -10/Materials | Entered Mines 135 | -10/Mines | Assembled infested the area 218 | -10/Mines | Met a Derelict bent on vengeance 301 | -10/Mines | Core integrity fell below 50% 303 | -10/Mines | Build established: Mutant 307 | -10/Mines | Released all parts (5) 308 | -10/Mines | Core integrity fell below 20% 308 | -10/Mines | Destroyed by D-53 Grenadier with Mini Grenade Launcher Last Messages --------------- 00186_ S-10 Pest destroyed. 00197_ Acquired 9 matter. 00227_ Acquired Lgt. Assault Rifle. 00263_ Acquired Wheel. 00265_ Acquired 10 matter. 00284_ Acquired Wheel. 00297_ Wheel destroyed. 00298_ Ion Engine destroyed. 00300_ The unstable cave ceiling collapses. 00303_ K-01 Serf collects debris. 00304_ Assault Rifle destroyed. 00305_ The unstable cave ceiling collapses. 00305_ Beam Rifle destroyed. 00306_ The unstable cave ceiling collapses. 00307_ Released Hcp. Storage Unit. 00307_ Released Lrg. Storage Unit. 00307_ Released Com. Wheel. 00307_ Released Lgt. Nuclear Core. 00307_ Released Beam Rifle. 00308_ K-01 Serf collects debris. Map ----- +----------------------------------------------------+ | | | | | | | | | | | | | | | ?????????????????????????????????????????????????? | | ?????????????????????????????????????????????????? | | ?????????????????????????????????????????????????? | | ?????????????????????????????????????????????????? | | ??????????????????????????#???????????###????????? | | ????????????????????????? ??????????## #???????? | | ????????????????????????? ??????????# #????### | | ????????????????????????? ??????????# #????# | | ????????????????????????? ???????????# #????# # | | ????????????????????????? ????????????# #????# # | | ?????????????????????????# ????????????# ###### # | | ?????????????????????????# #???????????# *% # | | ?????????????????????????# #???????????## !###### | | ?????????????????????????#=#????????????## #????? | | ?????????????????????????#%#?????????##### #????? | | ???????????????????????###=###???????# #????? | | ????????????????# ###### #[ ###?????# #????? | | ????????????????? ##???## ######????? | | ??????????????????????# @ ##### ########??? | | ??????????????????????# [ # !% | | ????????????? $ ## =!= < ########??? | | ?????????????????""" *!! k #?????????? | | ?????????????????""" [[[ d !%##?????????? | | ?????????????????""" ### * # ##??????????? | | ???????????????? ??## d## #???????????? | | ???????????????? ????## # ## #???????????? | | ??????????????? ##??????####### #???????????? | | ?????????????? ???????????????#### ???????????? | | ?????????????? ??????????????????? ???????????? | | ?????????????????????????????????? # ??????????? | | ?????????????????????????????????# % ??????????? | | ?????????????????????????????????## ?????????? | | ??????????????????????????????????# ? ?????????? | | ?????????????????????????????????? ????????? | | ?????????????????????????????????? ?%????????? | | ?????????????????????????????????? ??????????? | | ?????????????????????????????????? #???????????? | | ?????????????????????????????????????????????????? | | ?????????????????????????????????????????????????? | | ?????????????????????????????????????????????????? | | ?????????????????????????????????????????????????? | | ?????????????????????????????????????????????????? | | ?????????????????????????????????????????????????? | +----------------------------------------------------+ Best States ------------- Heat Dissipation 25 Energy Generation 10 Energy Capacity 250 Matter Stores 300 Matter Capacity 300 Sight Range 16 Terrain Scan Density 10 Evasion (%) 40 Item Schematics ----------------- None Robot Schematics ------------------ None Fabricated ------------ Nothing Alien Tech Used ----------------- None Achievements -------------- None Challenges ------------ None Game ------ Seed TachyonDynamicCharger Manual? 0 Play Time 00:04:17 Cumulative 95.6 hours Start 2024.04.07 @ 18:47:48 End 2024.04.07 @ 18:50:44 Sessions 1 Manual Loads 0 Difficulty Rogue Special Mode None Game No. 144 Rogue 132 Adventurer 10 Explorer 2 Win Type - Total 1 Types 1/0/0/0/0/0/0/0/0 Lore% 26 Gallery% 55 Achievement% 41 Wizard Run 0 Options --------- Layout 0 ASCII 0 Keyboard 0 Movement Arrows Keybinds 0 Fullscreen 1 Font 36/Smallcaps Map View 76x50 Zoom Use 0% Tactical HUD 1 Map Filters NONE Filters NONE Steam 1 RUN: d304e242-f62d-41dc-8074-e69826564ee3